bitfinex/quotes_SOLUSD_20241008
["timestamp","ask_amount","ask_price","bid_price","bid_amount"]
[1728428468581,26.9764,143.35,143.31,0.8607254]
[1728428468963,6.976,143.35,143.31,7.8384254]
[1728428469172,14.25864011,143.38,143.33,6.9767]
[1728428469367,6.9743,143.39,143.34,1.39515132]
[1728428469577,6.9743,143.39,143.35,6.9758]
[1728428470785,20.0,143.38,143.35,6.9758]
[1728428471286,20.0,143.4,143.35,6.9758]
[1728428471475,6.9735,143.4,143.35,6.9758]
[1728428472686,6.9735,143.4,143.33,30.3814841]
[1728428472894,7.28775098,143.42,143.36,6.9752]
[1728428472895,6.973,143.41,143.36,6.9752]
[1728428473070,6.973,143.41,143.37,1.39482756]
[1728428473884,6.973,143.41,143.36,6.9752]
[1728428474095,6.9735,143.4,143.36,6.9752]
[1728428476085,6.9735,143.4,143.35,17.4391]
[1728428476269,6.9735,143.4,143.35,24.4149]
[1728428477976,6.9735,143.4,143.36,6.9753]
[1728428478293,6.973,143.41,143.36,6.9753]
[1728428478882,48.0243704,143.45,143.36,12.9397841]
[1728428479084,6.9721,143.43,143.38,6.974]
[1728428479679,20.0,143.44,143.38,6.974]
[1728428479893,6.9726,143.42,143.38,6.974]
[1728428483581,6.9721,143.43,143.39,1.39466368]
[1728428484409,6.9717,143.44,143.39,1.39466368]
[1728428484710,20.0,143.46,143.4,6.9734]
[1728428485001,6.9711,143.45,143.4,8.36784492]
[1728428485701,6.9711,143.45,143.41,6.9728]
[1728428485902,6.9706,143.46,143.42,8.36684436]
[1728428486270,6.97,143.48,143.42,14.33422846]
[1728428486470,9.11925401,143.51,143.44,6.9712]
[1728428486677,6.9692,143.49,143.44,6.9712]
[1728428487299,6.9692,143.49,143.45,6.9709]
[1728428488595,9.11925401,143.51,143.44,6.9714]
[1728428488797,6.9696,143.48,143.43,24.4013]
[1728428489003,43.776884,143.5,143.43,17.4294]
[1728428489395,52.89613801,143.5,143.43,17.4294]
[1728428489579,6.9706,143.46,143.42,6.9724]
[1728428490787,6.971,143.45,143.41,6.9729]
[1728428494787,6.9707,143.46,143.42,6.9723]
[1728428495108,43.776884,143.47,143.4,17.4332]
[1728428495285,6.9719,143.44,143.4,17.4332]
[1728428497191,6.9719,143.44,143.4,24.4065]
[1728428497393,23.776884,143.47,143.4,17.4332]
[1728428497597,23.776884,143.47,143.41,6.9728]
[1728428498490,26.9702,143.47,143.42,8.36651385]
[1728428498811,26.9702,143.47,143.43,6.972]
[1728428499212,20.0,143.47,143.44,6.9714]
[1728428499510,20.0,143.47,143.43,6.9719]
[1728428500389,20.0,143.48,143.42,24.4033]
[1728428500606,6.971,143.46,143.42,17.4309]
[1728428503289,6.971,143.46,143.43,1.39428895]
[1728428503706,6.971,143.46,143.42,24.4033]
[1728428511420,6.9701,143.47,143.43,6.972]
[1728428511834,6.9714,143.45,143.4,6.9733]
[1728428512128,6.9715,143.44,143.4,6.9733]
[1728428513220,6.9712,143.45,143.4,6.9733]
[1728428514623,6.9712,143.45,143.41,8.36709049]
[1728428514809,6.9707,143.46,143.41,8.36709049]
[1728428515199,6.9702,143.47,143.42,6.9723]
[1728428519527,6.9706,143.46,143.41,24.4048]
[1728428519727,6.9711,143.45,143.41,24.4048]
[1728428520028,6.9711,143.45,143.41,17.432]
[1728428520704,20.0,143.47,143.4,6.9733]
[1728428520904,6.9716,143.44,143.4,6.9733]
[1728428523525,6.9716,143.44,143.39,29.6922]
[1728428524617,6.9716,143.44,143.39,23.0582]
[1728428526553,20.0,143.47,143.39,23.0582]
[1728428526706,6.9721,143.43,143.39,23.0582]
[1728428532733,6.9721,143.43,143.39,6.9738]
[1728428532932,48.76113692,143.47,143.37,6.9748]
[1728428533139,6.9734,143.41,143.37,6.9749]
[1728428535032,20.0,143.44,143.38,18.83086528]
[1728428535610,20.0,143.45,143.38,17.4361]
[1728428536141,6.9721,143.43,143.39,6.9739]
[1728428537433,6.9721,143.43,143.39,8.36850743]
[1728428539840,6.9721,143.43,143.39,6.9739]
[1728428540336,6.9721,143.43,143.38,24.4104]
[1728428545339,20.0,143.45,143.36,22.1125]
[1728428545340,6.9732,143.41,143.37,6.9748]
[1728428545546,6.9732,143.41,143.36,22.1125]
[1728428545736,6.9732,143.41,143.37,6.9748]
[1728428546554,6.9726,143.42,143.37,6.9748]
[1728428547539,6.9726,143.42,143.36,22.1125]
[1728428547847,6.9726,143.42,143.38,6.9743]
[1728428557847,6.9719,143.44,143.39,6.9736]
[1728428558050,20.0,143.45,143.37,17.4366]
[1728428558051,6.9723,143.43,143.38,6.9743]
[1728428560986,20.0,143.45,143.38,6.9743]
[1728428561283,20.0,143.45,143.37,17.4366]
[1728428561454,20.0,143.45,143.36,22.1125]
[1728428561455,6.9736,143.4,143.36,22.8719]
[1728428562074,6.9731,143.41,143.37,6.9747]
[1728428562249,6.9731,143.41,143.37,8.36945491]
[1728428562758,6.9731,143.41,143.37,6.9747]
[1728428568391,6.9735,143.4,143.36,40.3099]
[1728428568688,6.9741,143.39,143.36,17.4381]
[1728428571669,6.9741,143.39,143.33,33.4587]
[1728428571877,6.9753,143.37,143.33,40.4354]
[1728428573395,6.9753,143.37,143.33,41.83055879]
[1728428574665,6.9746,143.38,143.33,34.85385879]
[1728428574984,6.9746,143.38,143.34,6.9763]
[1728428575190,51.06480401,143.41,143.33,33.4587]
[1728428575357,6.9735,143.4,143.36,6.9753]
[1728428575558,34.26092001,143.41,143.36,6.9753]
[1728428575779,26.973,143.41,143.36,6.9753]
[1728428577194,6.9736,143.4,143.36,6.9753]
[1728428577685,6.9736,143.4,143.35,24.4146]
[1728428579486,26.9731,143.41,143.36,6.9753]
[1728428579690,26.9731,143.41,143.37,6.9747]
[1728428580284,19.69253114,143.44,143.38,1.39480153]
[1728428580489,7.28549142,143.44,143.38,1.39480153]
[1728428582091,6.9721,143.43,143.39,6.9737]
[1728428583079,14.25709142,143.44,143.39,6.9737]
[1728428583280,14.25709142,143.44,143.4,1.39466466]
[1728428583475,14.25709142,143.44,143.39,8.36824985]
[1728428583688,14.25709142,143.44,143.39,6.9737]
[1728428584276,6.972,143.43,143.39,6.9737]
[1728428584474,6.9727,143.42,143.37,24.4114]
[1728428586795,6.9727,143.42,143.38,6.9744]
[1728428587000,6.9731,143.41,143.37,24.4119]
[1728428587478,6.9726,143.42,143.37,24.4119]
[1728428599886,6.9721,143.43,143.39,6.9739]
[1728428602292,6.9725,143.42,143.38,6.9743]
[1728428605610,6.9723,143.43,143.37,17.437]
[1728428605894,6.9723,143.43,143.39,6.9739]
[1728428606098,6.9723,143.43,143.38,6.9743]
[1728428610604,6.9726,143.42,143.37,24.4118]
[1728428611705,6.9726,143.42,143.38,6.9743]
[1728428612001,8.49969592,143.44,143.38,6.9743]
[1728428612002,6.9721,143.43,143.38,6.9743]
[1728428613921,6.9721,143.43,143.35,15.8665]
[1728428613922,6.9738,143.4,143.35,22.8422]
[1728428614488,6.9738,143.4,143.35,15.8665]
[1728428614705,6.9738,143.4,143.36,6.9753]
[1728428617584,23.776884,143.41,143.34,17.441]
[1728428617786,23.776884,143.41,143.31,23.7936254]
[1728428617787,6.9764,143.34,143.31,41.2380254]
[1728428618000,6.9755,143.36,143.31,34.6675254]
[1728428618210,6.9749,143.37,143.32,6.977]
[1728428619202,6.9758,143.36,143.31,41.6452254]
[1728428619412,29.86527281,143.4,143.31,34.6675254]
[1728428619588,6.9761,143.35,143.31,18.3051254]
[1728428619906,43.776884,143.39,143.31,0.8607254]
[1728428619907,6.9767,143.34,143.31,0.8607254]
[1728428625009,20.0,143.37,143.31,0.8607254]
[1728428625310,6.977,143.33,143.31,0.8607254]
[1728428629117,43.776884,143.36,143.31,0.8607254]
[1728428629710,6.9763,143.35,143.31,0.8607254]
[1728428630098,6.9765,143.34,143.31,0.8607254]
[1728428631121,6.976,143.35,143.31,0.8607254]
[1728428634426,43.776884,143.36,143.31,0.8607254]
[1728428634725,6.9764,143.34,143.31,0.8607254]
[1728428640013,43.776884,143.36,143.31,0.8607254]
[1728428640211,43.776884,143.36,143.31,7.8384254]
[1728428640411,6.976,143.35,143.31,7.8384254]
[1728428640728,6.976,143.35,143.31,0.8607254]
[1728428642223,6.9764,143.34,143.31,0.8607254]
[1728428645030,43.776884,143.36,143.31,0.8607254]
[1728428645338,6.9773,143.32,143.31,0.8607254]
[1728428649233,30.754184,143.32,143.31,0.8607254]
[1728428654335,50.754184,143.32,143.31,0.8607254]
[1728428661554,43.776884,143.31,143.25,10.0]
[1728428661849,17.4467,143.3,143.25,10.0]
[1728428662027,23.776884,143.29,143.25,10.0]
[1728428662220,6.9801,143.27,143.25,10.0]
[1728428662948,6.9794,143.28,143.25,10.0]
[1728428663136,6.9794,143.28,143.25,9.5]
[1728428663335,26.9789,143.29,143.25,9.5]
[1728428664847,20.0,143.29,143.25,16.4803]
[1728428665447,20.0,143.29,143.25,9.5]
[1728428665646,26.979,143.29,143.25,9.5]
[1728428669761,26.9779,143.31,143.26,6.9799]
[1728428670051,20.0,143.31,143.28,6.9789]
[1728428670248,10.33337944,143.34,143.27,12.9397841]
[1728428670446,6.9767,143.34,143.29,17.4465]
[1728428670648,6.9767,143.34,143.29,24.4252]
[1728428671837,20.0,143.33,143.29,24.4252]
[1728428672855,20.0,143.33,143.3,6.9781]
[1728428674736,20.0,143.33,143.29,24.4252]
[1728428675934,6.9777,143.32,143.27,13.5895]
[1728428678162,6.9777,143.32,143.28,6.9793]
[1728428681058,6.9777,143.32,143.27,6.6101]
[1728428681361,6.9777,143.32,143.27,13.5898]
[1728428683536,20.0,143.33,143.26,6.9802]
[1728428683537,6.9785,143.3,143.26,6.9802]
[1728428686260,6.9792,143.29,143.25,26.9514]
[1728428686744,6.9792,143.29,143.25,33.932]
[1728428687951,6.9792,143.29,143.25,26.9514]
[1728428688970,6.9794,143.28,143.25,9.5]
[1728428692360,6.9799,143.27,143.25,9.5]
[1728428693157,6.9803,143.26,143.25,9.5]
[1728428693340,50.757184,143.26,143.25,9.5]
[1728428693962,54.89346778,143.26,143.25,9.5]
[1728428694744,62.17966829,143.26,143.25,9.5]
[1728428696263,38.40278429,143.26,143.25,9.5]
[1728428696438,31.11658378,143.26,143.25,9.5]
[1728428697768,54.89346778,143.26,143.25,9.5]
[1728428700448,50.757184,143.26,143.25,9.5]
[1728428700845,54.88185413,143.26,143.25,9.5]
[1728428702271,59.09474655,143.26,143.25,9.5]
[1728428702469,6.9827,143.21,143.18,16.4343]
[1728428705146,6.9827,143.21,143.17,7.8453254]
[1728428705473,50.761084,143.18,143.17,0.8607254]
[1728428705678,54.88186645,143.18,143.17,0.8607254]
[1728428705854,24.12078245,143.18,143.17,0.8607254]
[1728428706251,54.88186645,143.18,143.17,0.8607254]
[1728428707374,50.761084,143.18,143.17,0.8607254]
[1728428707586,54.878148,143.18,143.17,0.8607254]
[1728428707875,50.761084,143.18,143.17,0.8607254]
[1728428708060,26.9842,143.18,143.17,0.8607254]
[1728428708264,20.0,143.18,143.17,0.8607254]
[1728428708466,26.9842,143.18,143.17,0.8607254]
[1728428709773,50.761084,143.18,143.17,0.8607254]
[1728428711478,51.97593113,143.18,143.17,0.8607254]
[1728428713079,59.25402586,143.18,143.17,0.8607254]
[1728428714981,63.46691828,143.18,143.17,0.8607254]
[1728428716278,59.25402586,143.18,143.17,0.8607254]
[1728428718165,63.46691828,143.18,143.17,0.8607254]
[1728428719482,6.9868,143.13,143.09,24.4594]
[1728428719690,20.0,143.13,143.09,24.4594]
[1728428720375,20.0,143.13,143.08,15.2718]
[1728428720577,20.0,143.11,143.08,15.2718]
[1728428721968,6.9882,143.1,143.08,15.2718]
[1728428722167,6.9877,143.11,143.08,15.2718]
[1728428722373,20.0,143.1,143.08,15.2718]
[1728428722682,6.9886,143.09,143.04,13.1057]
[1728428723380,20.0,143.1,143.04,6.1148]
[1728428723381,6.989,143.08,143.04,6.1148]
[1728428724066,6.9896,143.07,143.04,6.1148]
[1728428724280,20.0,143.08,143.04,6.1148]
[1728428724786,26.99,143.06,143.02,16.9274254]
[1728428725970,20.0,143.06,143.02,16.9274254]
[1728428726172,20.0,143.06,143.04,6.991]
[1728428726571,30.765584,143.09,143.04,6.991]
[1728428726889,26.9892,143.08,143.03,6.9914]
[1728428727387,20.0,143.08,143.04,6.9908]
[1728428729391,20.0,143.09,143.05,11.9901]
[1728428729687,6.9872,143.12,143.06,17.4745]
[1728428729889,6.9872,143.12,143.06,24.4641]
[1728428730262,6.9872,143.12,143.07,6.9894]
[1728428730783,16.39057758,143.14,143.08,6.989]
[1728428730784,6.9867,143.13,143.08,6.989]
[1728428731372,6.9867,143.13,143.09,6.9886]
[1728428731777,6.9862,143.14,143.1,6.9879]
[1728428731993,6.9866,143.13,143.09,6.9885]
[1728428736093,20.0,143.14,143.1,6.988]
[1728428736497,20.0,143.15,143.11,6.9875]
[1728428736728,20.0,143.15,143.11,14.33712308]
[1728428736895,6.9842,143.18,143.13,6.9865]
[1728428737487,8.48400452,143.2,143.15,6.9852]
[1728428737687,11.08415126,143.19,143.14,24.4507]
[1728428737901,6.9842,143.18,143.14,24.4507]
[1728428738073,4.10005126,143.19,143.11,6.5756]
[1728428738273,4.10005126,143.19,143.11,24.0443]
[1728428738274,6.986,143.15,143.11,24.0443]
[1728428738889,20.0,143.14,143.11,24.0443]
[1728428740274,20.0,143.14,143.11,31.0318]
[1728428740480,23.776884,143.18,143.12,1.39731973]
[1728428740889,24.10586078,143.17,143.12,1.39731973]
[1728428741190,20.0,143.17,143.12,1.39731973]
[1728428741609,20.0,143.17,143.13,6.9866]
[1728428741998,26.9847,143.17,143.13,6.9866]
[1728428742204,4.10924841,143.16,143.13,6.9866]
[1728428742399,26.9847,143.17,143.13,6.9866]
[1728428742716,4.1092682,143.16,143.13,6.9866]
[1728428743017,26.9847,143.17,143.13,6.9866]
[1728428743192,4.1092682,143.16,143.13,6.9866]
[1728428743388,26.9847,143.17,143.13,6.9866]
[1728428743592,4.11084024,143.16,143.12,6.987]
[1728428743905,26.9847,143.17,143.12,6.987]
[1728428744088,4.11083745,143.16,143.12,6.987]
[1728428744288,26.9847,143.17,143.12,6.987]
[1728428744509,4.11265424,143.16,143.12,6.987]
[1728428744697,26.9847,143.17,143.13,6.9865]
[1728428745005,4.11211125,143.16,143.13,6.9865]
[1728428745214,20.0,143.17,143.13,6.9865]
[1728428745395,4.11355298,143.16,143.13,6.9865]
[1728428745600,20.0,143.17,143.13,6.9865]
[1728428745794,4.11344389,143.16,143.13,6.9865]
[1728428746115,20.0,143.17,143.13,6.9865]
[1728428746314,4.1137557,143.16,143.13,6.9865]
[1728428746515,20.0,143.17,143.13,6.9865]
[1728428746697,4.11574342,143.16,143.13,6.9865]
[1728428746900,20.0,143.17,143.13,6.9865]
[1728428747215,4.11580192,143.16,143.13,6.9865]
[1728428747519,20.0,143.17,143.13,6.9865]
[1728428747718,4.11797739,143.16,143.13,6.9865]
[1728428747921,20.0,143.17,143.13,6.9865]
[1728428748090,4.11817312,143.16,143.13,6.9865]
[1728428748295,20.0,143.17,143.13,6.9865]
[1728428748795,4.12062149,143.16,143.13,6.9865]
[1728428748996,20.0,143.17,143.13,6.9865]
[1728428749296,4.1207046,143.16,143.13,6.9865]
[1728428749498,4.1207046,143.15,143.13,6.9865]
[1728428749696,20.0,143.17,143.13,6.9865]
[1728428749999,4.12328411,143.16,143.13,6.9865]
[1728428750200,4.12328411,143.15,143.13,6.9865]
[1728428750405,20.0,143.17,143.13,6.9865]
[1728428750600,4.12615071,143.16,143.13,6.9865]
[1728428750800,4.12615071,143.15,143.13,6.9865]
[1728428751015,4.12623626,143.14,143.13,6.9865]
[1728428751220,4.12623626,143.14,143.11,31.0315]
[1728428751432,26.9847,143.17,143.11,31.0315]
[1728428751744,4.12986377,143.16,143.11,31.0315]
[1728428752020,26.9847,143.17,143.11,31.0315]
[1728428752021,4.12986377,143.15,143.11,31.0315]
[1728428752215,4.12986377,143.14,143.11,31.0315]
[1728428752405,4.12986377,143.13,143.11,31.0315]
[1728428752598,26.9861,143.15,143.11,17.4687]
[1728428752795,4.13053823,143.14,143.11,24.4561]
[1728428753029,4.13053823,143.13,143.11,24.4561]
[1728428753201,20.0,143.17,143.12,6.9871]
[1728428753397,11.1160258,143.16,143.12,6.9871]
[1728428753597,24.1308258,143.15,143.12,6.9871]
[1728428753805,4.1308258,143.14,143.12,6.9871]
[1728428754003,4.1308258,143.14,143.11,24.4562]
[1728428754497,4.1308258,143.14,143.1,6.988]
[1728428754698,20.0,143.13,143.09,6.9884]
[1728428755709,6.9867,143.13,143.08,46.7592]
[1728428755914,6.9867,143.13,143.09,6.9885]
[1728428756112,4.13197159,143.12,143.09,6.9885]
[1728428756321,4.13197159,143.11,143.08,46.7591]
[1728428756522,6.9872,143.12,143.08,46.7591]
[1728428756731,4.13279484,143.11,143.08,46.7591]
[1728428757026,6.9872,143.12,143.08,46.7591]
[1728428757335,4.13272638,143.11,143.08,46.7591]
[1728428757528,6.9872,143.12,143.08,46.7591]
[1728428757718,4.13255477,143.11,143.08,46.7591]
[1728428757909,6.9872,143.12,143.08,46.7591]
[1728428758109,4.13287818,143.11,143.08,46.7591]
[1728428758310,6.9872,143.12,143.08,46.7591]
[1728428758609,4.13326202,143.11,143.08,46.7591]
[1728428758928,6.9872,143.12,143.08,46.7591]
[1728428759133,4.13321519,143.11,143.08,46.7591]
[1728428759429,6.9872,143.12,143.08,46.7591]
[1728428759603,4.13364367,143.11,143.08,46.7591]
[1728428759806,6.9872,143.12,143.08,17.4721]
[1728428760032,24.13364746,143.11,143.08,24.4611]
[1728428760327,4.13355574,143.1,143.08,24.4611]
[1728428760534,6.9886,143.09,143.05,22.4758]
[1728428760717,6.9882,143.1,143.05,29.4661]
[1728428760906,24.13380084,143.09,143.05,29.4661]
[1728428761104,20.0,143.09,143.05,29.4661]
[1728428761529,4.13364789,143.08,143.05,29.4661]
[1728428761706,20.0,143.09,143.05,29.4661]
[1728428761908,24.13309405,143.08,143.05,22.4758]
[1728428762103,6.9899,143.07,143.05,5.0]
[1728428762629,23.776884,143.09,143.05,5.0]
[1728428762927,31.12158118,143.08,143.05,5.0]
[1728428763230,20.0,143.06,143.05,5.0]
[1728428763405,24.13238118,143.06,143.05,5.0]
[1728428765112,20.0,143.08,143.05,11.9905]
[1728428765308,4.12996038,143.07,143.05,11.9905]
[1728428765513,20.0,143.08,143.05,11.9905]
[1728428765714,4.12871658,143.07,143.05,11.9905]
[1728428765916,20.0,143.08,143.05,11.9905]
[1728428767114,20.0,143.09,143.06,6.9899]
[1728428767313,4.12867586,143.08,143.06,6.9899]
[1728428767537,20.0,143.09,143.06,6.9899]
[1728428767716,20.0,143.1,143.06,6.9899]
[1728428767923,4.12929385,143.09,143.07,6.9894]
[1728428768224,6.9872,143.12,143.07,6.9894]
[1728428768427,4.12947037,143.11,143.08,6.989]
[1728428768625,4.12947037,143.1,143.08,6.989]
[1728428768826,6.9866,143.13,143.08,6.989]
[1728428769018,4.12943693,143.12,143.08,6.989]
[1728428769216,4.12943693,143.11,143.09,6.9883]
[1728428769939,20.0,143.12,143.09,6.9883]
[1728428770131,4.12941236,143.1,143.09,6.9883]
[1728428770429,6.9862,143.14,143.1,6.9881]
[1728428770632,24.30345401,143.16,143.08,12.9397841]
[1728428770935,4.13015518,143.15,143.11,6.9872]
[1728428771109,4.13015518,143.14,143.11,6.9872]
[1728428771309,4.13015518,143.13,143.11,6.9872]
[1728428771531,16.10445401,143.16,143.11,6.9872]
[1728428771911,16.10445401,143.16,143.1,17.4693]
[1728428772339,9.11925401,143.16,143.1,17.4693]
[1728428772512,6.9864,143.14,143.1,17.4693]
[1728428773036,20.0,143.13,143.1,17.4693]
[1728428773234,20.0,143.13,143.1,24.4572]
[1728428773436,28.19926443,143.17,143.1,17.4693]
[1728428773613,20.0,143.15,143.11,6.9876]
[1728428773814,20.0,143.15,143.13,6.9865]
[1728428774339,20.0,143.16,143.13,6.9865]
[1728428775723,20.0,143.16,143.1,12.9397841]
[1728428775929,26.9843,143.18,143.12,17.4672]
[1728428776241,4.13453389,143.15,143.13,6.9865]
[1728428776732,4.13453389,143.17,143.13,6.9865]
[1728428776931,26.9843,143.18,143.13,6.9865]
[1728428776932,4.13453389,143.16,143.13,6.9865]
[1728428777128,4.13453389,143.15,143.13,6.9865]
[1728428777444,4.13453389,143.14,143.13,6.9865]
[1728428778254,4.13453389,143.14,143.13,21.32343699]
[1728428778444,26.9837,143.19,143.14,6.9857]
[1728428778638,4.13574378,143.18,143.14,6.9857]
[1728428778857,4.13574378,143.17,143.15,6.9856]
[1728428779065,4.13574378,143.16,143.14,6.986]
[1728428779359,4.13574378,143.15,143.14,6.986]
[1728428780229,20.0,143.17,143.14,6.986]
[1728428780648,20.0,143.18,143.12,16.575]
[1728428780864,20.0,143.18,143.1,6.9877]
[1728428780865,20.0,143.14,143.1,6.9877]
[1728428781630,6.9862,143.14,143.09,24.4592]
[1728428782452,4.13385407,143.13,143.09,24.4592]
[1728428782663,11.12085407,143.13,143.09,17.4708]
[1728428782960,11.12099097,143.12,143.09,17.4708]
[1728428783250,6.9872,143.12,143.09,17.4708]
[1728428783754,6.9872,143.12,143.08,23.564]
[1728428784140,11.12055407,143.13,143.09,6.9884]
[1728428784345,4.13379229,143.12,143.09,6.9884]
[1728428784556,11.12055407,143.13,143.09,6.9884]
[1728428785034,4.13373868,143.12,143.08,16.575]
[1728428785244,6.9872,143.12,143.08,23.5639]
[1728428786145,11.12055407,143.13,143.08,23.5639]
[1728428786441,4.13353365,143.12,143.08,23.5639]
[1728428786663,11.12055407,143.13,143.08,23.5639]
[1728428786851,4.13354222,143.12,143.08,23.5639]
[1728428787050,11.12055407,143.13,143.08,23.5639]
[1728428787251,4.13353118,143.12,143.09,6.9885]
[1728428787760,11.12055407,143.13,143.09,6.9885]
[1728428787936,4.13332737,143.12,143.09,6.9885]
[1728428788140,11.12055407,143.13,143.09,6.9885]
[1728428788348,4.13314753,143.12,143.09,6.9885]
[1728428788547,4.13314753,143.11,143.09,6.9885]
[1728428788761,11.12055407,143.13,143.09,6.9885]
[1728428789064,4.13258845,143.12,143.09,6.9885]
[1728428789284,4.13258845,143.11,143.09,6.9885]
[1728428789439,11.12055407,143.13,143.09,6.9885]
[1728428789781,4.13150128,143.12,143.09,6.9885]
[1728428789937,4.13150128,143.11,143.09,6.9885]
[1728428790139,11.12055407,143.13,143.09,6.9885]
[1728428790464,4.13194653,143.12,143.09,6.9885]
[1728428790637,4.13194653,143.11,143.09,6.9885]
[1728428790837,11.12055407,143.13,143.09,6.9885]
[1728428791038,4.13194986,143.12,143.09,6.9885]
[1728428791339,4.13194986,143.11,143.09,6.9885]
[1728428791539,11.12055407,143.13,143.09,6.9885]
[1728428791753,4.1321311,143.12,143.09,6.9885]
[1728428791952,4.1321311,143.11,143.09,6.9885]
[1728428792159,11.12055407,143.13,143.09,6.9885]
[1728428792360,4.13253109,143.12,143.09,6.9885]
[1728428792635,4.13253109,143.11,143.09,6.9885]
[1728428792846,11.12055407,143.13,143.09,6.9885]
[1728428792847,6.9867,143.13,143.09,6.9885]
[1728428793055,4.13250439,143.12,143.09,6.9885]
[1728428793254,4.13250439,143.11,143.09,6.9885]
[1728428793453,4.13250439,143.1,143.09,6.9885]
[1728428793666,4.13250439,143.12,143.09,6.9885]
[1728428793866,4.13250439,143.11,143.09,6.9885]
[1728428794080,6.9867,143.13,143.09,6.9885]
[1728428794378,4.13338193,143.12,143.09,6.9885]
[1728428794672,4.13338193,143.11,143.09,6.9885]
[1728428794871,6.9867,143.13,143.09,6.9885]
[1728428795056,4.13359197,143.12,143.09,6.9885]
[1728428795256,4.13359197,143.11,143.09,6.9885]
[1728428795449,4.13359197,143.1,143.09,6.9885]
[1728428796068,4.13359197,143.12,143.09,6.9885]
[1728428796273,4.13359197,143.1,143.09,6.9885]
[1728428796568,4.13359197,143.12,143.09,6.9885]
[1728428796801,4.13359197,143.11,143.09,6.9885]
[1728428796966,4.13359197,143.1,143.09,6.9885]
[1728428797871,4.13359197,143.12,143.09,6.9885]
[1728428798045,4.13359197,143.11,143.09,6.9885]
[1728428798249,4.13359197,143.1,143.09,6.9885]
[1728428798448,4.13359197,143.12,143.09,6.9885]
[1728428798650,4.13359197,143.11,143.09,6.9886]
[1728428798857,4.13359197,143.1,143.09,6.9886]
[1728428800081,4.13433169,143.1,143.09,6.9886]
[1728428800462,4.13433169,143.13,143.09,6.9886]
[1728428800662,4.13433169,143.12,143.09,6.9886]
[1728428800860,4.13433169,143.11,143.09,6.9886]
[1728428801047,4.13433169,143.1,143.09,6.9886]
[1728428801561,4.13433169,143.1,143.05,22.4757]
[1728428801763,24.13473566,143.09,143.05,29.4661]
[1728428802076,4.13473566,143.08,143.05,29.4661]
[1728428802253,26.9886,143.09,143.05,5.0]
[1728428802254,11.12453566,143.07,143.05,5.0]
[1728428802461,6.9898,143.07,143.05,5.0]
[1728428802683,4.13372351,143.06,143.05,5.0]
[1728428803880,4.13296223,143.06,143.05,5.0]
[1728428806479,24.13296223,143.06,143.05,5.0]
[1728428810886,31.12296223,143.06,143.05,5.0]
[1728428811073,31.11895595,143.06,143.05,5.0]
[1728428814582,26.99,143.06,143.05,5.0]
[1728428814789,31.11968245,143.06,143.05,5.0]
[1728428815799,54.89656645,143.06,143.05,5.0]
[1728428816804,31.11968245,143.06,143.05,5.0]
[1728428817175,47.90656645,143.06,143.05,5.0]
[1728428817383,54.89656645,143.06,143.05,5.0]
[1728428820897,24.12968245,143.06,143.05,5.0]
[1728428821105,24.12968245,143.06,143.05,11.9905]
[1728428821286,20.0,143.06,143.05,11.9905]
[1728428821481,20.0,143.06,143.05,5.0]
[1728428822074,24.12834082,143.06,143.05,5.0]
[1728428823006,20.0,143.06,143.05,5.0]
[1728428823401,24.13084476,143.06,143.05,5.0]
[1728428825087,24.13084476,143.06,143.05,11.9905]
[1728428825088,4.13084476,143.06,143.05,11.9905]
[1728428825288,7.26960977,143.11,143.05,5.0]
[1728428825498,8.20180512,143.12,143.07,6.9891]